[Event "Titled Tuesday Blitz April 19 Early 2022"]
[White "Postnikov, Daniil"]
[Black "Shyaamnikhil P"]
[WhiteFideId "4166329"]
[BlackFideId "5024218"]
[WhiteElo "2261"]
[BlackElo "2329"]
[Result "0-1"]
[Round "08"]
[TimeControl "180+1"]
[Date "2022.04.19"]
[WhiteClock "0:00:17"]
[BlackClock "0:00:15"]

1. d4 {[%clk 0:02:50]}  Nf6 {[%clk 0:02:59]} 2. c4 {[%clk 0:02:51]}  c5 {[%clk 0:02:58]} 3. d5 {[%clk 0:02:51]}  b5 {[%clk 0:02:54]} 4. cxb5 {[%clk 0:02:51]}  a6 {[%clk 0:02:52]} 5. bxa6 {[%clk 0:02:51]}  g6 {[%clk 0:02:50]} 6. Nc3 {[%clk 0:02:51]}  Bg7 {[%clk 0:02:51]} 7. e4 {[%clk 0:02:51]}  O-O {[%clk 0:02:50]} 8. e5 {[%clk 0:02:51]}  Ne8 {[%clk 0:02:50]} 9. Nf3 {[%clk 0:02:51]}  d6 {[%clk 0:02:48]} 10. h4 {[%clk 0:02:50]}  dxe5 {[%clk 0:02:43]} 11. h5 {[%clk 0:02:50]}  Nd6 {[%clk 0:02:42]} 12. hxg6 {[%clk 0:02:50]}  hxg6 {[%clk 0:02:38]} 13. Bh6 {[%clk 0:02:50]}  f6 {[%clk 0:02:34]} 14. Qd2 {[%clk 0:02:46]}  Nf7 {[%clk 0:02:29]} 15. Bxg7 {[%clk 0:02:40]}  Kxg7 {[%clk 0:02:30]} 16. O-O-O {[%clk 0:02:33]}  Nxa6 {[%clk 0:02:28]} 17. Bc4 {[%clk 0:02:28]}  Rh8 {[%clk 0:01:54]} 18. Ne4 {[%clk 0:02:21]}  Bf5 {[%clk 0:01:46]} 19. Ng3 {[%clk 0:02:18]}  Nd6 {[%clk 0:01:31]} 20. Nxf5+ {[%clk 0:02:14]}  gxf5 {[%clk 0:01:25]} 21. Nh4 {[%clk 0:01:21]}  Nb4 {[%clk 0:01:07]} 22. Qc3 {[%clk 0:01:05]}  Kf7 {[%clk 0:00:53]} 23. a3 {[%clk 0:01:00]}  Qg8 {[%clk 0:00:36]} 24. g3 {[%clk 0:00:49]}  Qg4 {[%clk 0:00:34]} 25. Bb3 {[%clk 0:00:48]}  c4 {[%clk 0:00:25]} 26. Qxb4 {[%clk 0:00:48]}  Rhb8 {[%clk 0:00:20]} 27. Qe1 {[%clk 0:00:38]}  Rxb3 {[%clk 0:00:18]} 28. f3 {[%clk 0:00:38]}  Qg8 {[%clk 0:00:17]} 29. f4 {[%clk 0:00:27]}  c3 {[%clk 0:00:17]} 30. Rh2 {[%clk 0:00:19]}  cxb2+ {[%clk 0:00:16]} 31. Rxb2 {[%clk 0:00:20]}  Qc8+ {[%clk 0:00:15]} 32. Kb1 {[%clk 0:00:16]}  Rxb2+ {[%clk 0:00:15]} 33. Kxb2 {[%clk 0:00:17]}  Nc4+ {[%clk 0:00:15]} 0-1


[Site "https://www.chess.com"]

[Event "Titled Tuesday Blitz April 19 Early 2022"]
[White "Pranav, V"]
[Black "Bortnyk, Olexandr"]
[WhiteFideId "25060783"]
[BlackFideId "14120828"]
[WhiteElo "2349"]
[BlackElo "2723"]
[Result "0-1"]
[Round "08"]
[TimeControl "180+1"]
[Date "2022.04.19"]
[WhiteClock "0:00:01"]
[BlackClock "0:00:06"]

1. Nf3 {[%clk 0:03:00]}  d6 {[%clk 0:02:44]} 2. g3 {[%clk 0:03:00]}  e5 {[%clk 0:02:44]} 3. Bg2 {[%clk 0:02:59]}  Nc6 {[%clk 0:02:40]} 4. d3 {[%clk 0:02:58]}  Bg4 {[%clk 0:02:30]} 5. c4 {[%clk 0:02:56]}  Qd7 {[%clk 0:02:21]} 6. h3 {[%clk 0:02:54]}  Be6 {[%clk 0:02:14]} 7. Nc3 {[%clk 0:02:52]}  h6 {[%clk 0:02:13]} 8. a3 {[%clk 0:02:50]}  a5 {[%clk 0:02:11]} 9. Rb1 {[%clk 0:02:49]}  Nf6 {[%clk 0:01:56]} 10. b4 {[%clk 0:02:44]}  axb4 {[%clk 0:01:56]} 11. axb4 {[%clk 0:02:45]}  Be7 {[%clk 0:01:41]} 12. b5 {[%clk 0:02:43]}  Nd8 {[%clk 0:01:41]} 13. g4 {[%clk 0:02:40]}  O-O {[%clk 0:01:36]} 14. g5 {[%clk 0:02:38]}  hxg5 {[%clk 0:01:27]} 15. Nxg5 {[%clk 0:02:39]}  c6 {[%clk 0:01:27]} 16. Rg1 {[%clk 0:02:33]}  d5 {[%clk 0:01:24]} 17. cxd5 {[%clk 0:01:54]}  cxd5 {[%clk 0:01:22]} 18. Bd2 {[%clk 0:01:54]}  Ra3 {[%clk 0:01:00]} 19. Qc1 {[%clk 0:01:34]}  e4 {[%clk 0:01:00]} 20. dxe4 {[%clk 0:01:09]}  d4 {[%clk 0:01:00]} 21. Nd1 {[%clk 0:01:09]}  Bb3 {[%clk 0:00:35]} 22. Nb2 {[%clk 0:01:05]}  Ne6 {[%clk 0:00:32]} 23. Ra1 {[%clk 0:00:45]}  Rc8 {[%clk 0:00:31]} 24. Qb1 {[%clk 0:00:38]}  Bc2 {[%clk 0:00:30]} 25. Qc1 {[%clk 0:00:38]}  Bxe4 {[%clk 0:00:27]} 26. Qd1 {[%clk 0:00:38]}  Bc2 {[%clk 0:00:13]} 27. Qc1 {[%clk 0:00:38]}  Nxg5 {[%clk 0:00:09]} 28. Bxg5 {[%clk 0:00:29]}  Be4 {[%clk 0:00:08]} 29. Qd1 {[%clk 0:00:26]}  Rxa1 {[%clk 0:00:08]} 30. Qxa1 {[%clk 0:00:26]}  Bxg2 {[%clk 0:00:08]} 31. Rxg2 {[%clk 0:00:23]}  Qxh3 {[%clk 0:00:09]} 32. Kf1 {[%clk 0:00:19]}  Ng4 {[%clk 0:00:09]} 33. Kg1 {[%clk 0:00:13]}  Bxg5 {[%clk 0:00:09]} 34. Nd3 {[%clk 0:00:14]}  Qh5 {[%clk 0:00:03]} 35. Qxd4 {[%clk 0:00:12]}  Nf6 {[%clk 0:00:02]} 36. f4 {[%clk 0:00:08]}  Bh4 {[%clk 0:00:03]} 37. Qb6 {[%clk 0:00:05]}  Qd5 {[%clk 0:00:01]} 38. Kh2 {[%clk 0:00:05]}  Qe4 {[%clk 0:00:02]} 39. Qd6 {[%clk 0:00:03]}  Re8 {[%clk 0:00:01]} 40. Nc5 {[%clk 0:00:03]}  Qh7 {[%clk 0:00:02]} 41. Kg1 {[%clk 0:00:02]}  Qb1+ {[%clk 0:00:02]} 42. Kh2 {[%clk 0:00:03]}  Qxb5 {[%clk 0:00:03]} 43. Nd3 {[%clk 0:00:02]}  Qc6 {[%clk 0:00:03]} 44. Qd4 {[%clk 0:00:02]}  Qe4 {[%clk 0:00:04]} 45. Qc3 {[%clk 0:00:02]}  Qh7 {[%clk 0:00:04]} 46. Kg1 {[%clk 0:00:02]}  Qf5 {[%clk 0:00:04]} 47. Qd4 {[%clk 0:00:02]}  Qe4 {[%clk 0:00:03]} 48. Qc3 {[%clk 0:00:02]}  Qe3+ {[%clk 0:00:04]} 49. Kh2 {[%clk 0:00:03]}  Bg3+ {[%clk 0:00:05]} 50. Rxg3 {[%clk 0:00:02]}  Qxg3+ {[%clk 0:00:05]} 51. Kxg3 {[%clk 0:00:01]}  Ne4+ {[%clk 0:00:06]} 0-1


[Site "https://www.chess.com"]

[Event "Titled Tuesday Blitz April 19 Early 2022"]
[White "Quirke, Jeffrey"]
[Black "Mohammadian, Mohammad"]
[WhiteFideId "2013029"]
[BlackFideId "12566055"]
[WhiteElo "2177"]
[BlackElo "1544"]
[Result "1-0"]
[Round "08"]
[TimeControl "180+1"]
[Date "2022.04.19"]
[WhiteClock "0:01:04"]
[BlackClock "0:00:45"]

1. d4 {[%clk 0:03:00]}  Nf6 {[%clk 0:02:57]} 2. c4 {[%clk 0:03:00]}  g6 {[%clk 0:02:51]} 3. Nc3 {[%clk 0:03:00]}  d5 {[%clk 0:02:51]} 4. cxd5 {[%clk 0:03:01]}  Nxd5 {[%clk 0:02:50]} 5. e4 {[%clk 0:03:02]}  Nxc3 {[%clk 0:02:50]} 6. bxc3 {[%clk 0:03:03]}  Bg7 {[%clk 0:02:50]} 7. Nf3 {[%clk 0:03:04]}  c5 {[%clk 0:02:50]} 8. Be3 {[%clk 0:03:05]}  Qa5 {[%clk 0:02:47]} 9. Qd2 {[%clk 0:03:04]}  Nc6 {[%clk 0:02:45]} 10. Rb1 {[%clk 0:03:04]}  cxd4 {[%clk 0:02:44]} 11. cxd4 {[%clk 0:03:03]}  Qxd2+ {[%clk 0:02:44]} 12. Kxd2 {[%clk 0:03:01]}  O-O {[%clk 0:02:41]} 13. Bd3 {[%clk 0:02:55]}  Rd8 {[%clk 0:02:41]} 14. d5 {[%clk 0:02:51]}  Ne5 {[%clk 0:02:34]} 15. Nxe5 {[%clk 0:02:49]}  Bxe5 {[%clk 0:02:33]} 16. Ke2 {[%clk 0:02:45]}  e6 {[%clk 0:02:33]} 17. dxe6 {[%clk 0:01:59]}  fxe6 {[%clk 0:02:21]} 18. f4 {[%clk 0:01:50]}  Bd4 {[%clk 0:02:17]} 19. e5 {[%clk 0:01:49]}  Bxe3 {[%clk 0:02:17]} 20. Kxe3 {[%clk 0:01:49]}  b6 {[%clk 0:02:17]} 21. Bc4 {[%clk 0:01:46]}  Kf7 {[%clk 0:02:11]} 22. Rhd1 {[%clk 0:01:38]}  Bb7 {[%clk 0:02:10]} 23. g3 {[%clk 0:01:36]}  Ke7 {[%clk 0:02:05]} 24. h4 {[%clk 0:01:31]}  Bd5 {[%clk 0:01:59]} 25. Bxd5 {[%clk 0:01:28]}  exd5 {[%clk 0:01:58]} 26. Rbc1 {[%clk 0:01:27]}  Rd7 {[%clk 0:01:55]} 27. Kd4 {[%clk 0:01:26]}  Ke6 {[%clk 0:01:49]} 28. g4 {[%clk 0:01:25]}  h6 {[%clk 0:01:44]} 29. Rf1 {[%clk 0:01:25]}  Rf8 {[%clk 0:01:40]} 30. Rc6+ {[%clk 0:01:24]}  Ke7 {[%clk 0:01:34]} 31. Rxg6 {[%clk 0:01:19]}  Rh8 {[%clk 0:01:27]} 32. Rg7+ {[%clk 0:01:16]}  Kd8 {[%clk 0:01:27]} 33. Rxd7+ {[%clk 0:01:17]}  Kxd7 {[%clk 0:01:27]} 34. Kxd5 {[%clk 0:01:17]}  a5 {[%clk 0:01:24]} 35. f5 {[%clk 0:01:16]}  Kc7 {[%clk 0:01:21]} 36. e6 {[%clk 0:01:14]}  b5 {[%clk 0:01:18]} 37. f6 {[%clk 0:01:12]}  a4 {[%clk 0:01:17]} 38. f7 {[%clk 0:01:08]}  Rd8+ {[%clk 0:01:10]} 39. Ke5 {[%clk 0:01:07]}  Rf8 {[%clk 0:00:56]} 40. e7 {[%clk 0:01:07]}  Rh8 {[%clk 0:00:54]} 41. f8=Q {[%clk 0:01:06]}  Rxf8 {[%clk 0:00:52]} 42. exf8=Q {[%clk 0:01:06]}  b4 {[%clk 0:00:51]} 43. Qxb4 {[%clk 0:01:05]}  a3 {[%clk 0:00:50]} 44. Rf7+ {[%clk 0:01:05]}  Kd8 {[%clk 0:00:45]} 45. Qf8# {[%clk 0:01:04]} 1-0


[Site "https://www.chess.com"]

[Event "Titled Tuesday Blitz April 19 Early 2022"]
[White "Ratnakaran, K."]
[Black "Kotepalli, Sai Nirupama"]
[WhiteFideId "5005507"]
[BlackFideId "5039444"]
[WhiteElo "2407"]
[BlackElo "2398"]
[Result "1-0"]
[Round "08"]
[TimeControl "180+1"]
[Date "2022.04.19"]
[WhiteClock "0:02:03"]
[BlackClock "0:01:02"]

1. e4 {[%clk 0:02:57]}  c5 {[%clk 0:02:58]} 2. Nf3 {[%clk 0:02:56]}  e6 {[%clk 0:02:58]} 3. d4 {[%clk 0:02:57]}  cxd4 {[%clk 0:02:58]} 4. Nxd4 {[%clk 0:02:57]}  Nf6 {[%clk 0:02:58]} 5. Bd3 {[%clk 0:02:56]}  Nc6 {[%clk 0:02:56]} 6. Nxc6 {[%clk 0:02:56]}  bxc6 {[%clk 0:02:55]} 7. O-O {[%clk 0:02:57]}  d5 {[%clk 0:02:55]} 8. e5 {[%clk 0:02:57]}  Nd7 {[%clk 0:02:55]} 9. f4 {[%clk 0:02:58]}  Qb6+ {[%clk 0:02:54]} 10. Kh1 {[%clk 0:02:57]}  c5 {[%clk 0:02:53]} 11. c4 {[%clk 0:02:56]}  Bb7 {[%clk 0:02:53]} 12. Nc3 {[%clk 0:02:56]}  Be7 {[%clk 0:02:47]} 13. cxd5 {[%clk 0:02:55]}  exd5 {[%clk 0:02:46]} 14. Bb5 {[%clk 0:02:52]}  O-O-O {[%clk 0:02:44]} 15. a4 {[%clk 0:02:48]}  d4 {[%clk 0:02:42]} 16. a5 {[%clk 0:02:48]}  Qc7 {[%clk 0:02:37]} 17. a6 {[%clk 0:02:46]}  Ba8 {[%clk 0:02:34]} 18. Na4 {[%clk 0:02:44]}  Nf8 {[%clk 0:02:27]} 19. Bd2 {[%clk 0:02:44]}  f6 {[%clk 0:02:15]} 20. Qg4+ {[%clk 0:02:36]}  Kb8 {[%clk 0:02:12]} 21. e6 {[%clk 0:02:33]}  Qd6 {[%clk 0:02:10]} 22. f5 {[%clk 0:02:31]}  Qd5 {[%clk 0:02:10]} 23. Rac1 {[%clk 0:02:27]}  Bd6 {[%clk 0:02:05]} 24. b4 {[%clk 0:02:25]}  h5 {[%clk 0:02:03]} 25. Qh3 {[%clk 0:02:24]}  cxb4 {[%clk 0:02:02]} 26. Bc4 {[%clk 0:02:23]}  Qe4 {[%clk 0:02:00]} 27. Bd3 {[%clk 0:02:16]}  Qg4 {[%clk 0:01:58]} 28. Kg1 {[%clk 0:02:12]}  Qxh3 {[%clk 0:01:52]} 29. gxh3 {[%clk 0:02:11]}  h4 {[%clk 0:01:34]} 30. Rc4 {[%clk 0:02:09]}  Be7 {[%clk 0:01:16]} 31. Bf4+ {[%clk 0:02:03]}  Bd6 {[%clk 0:01:16]} 32. Rxb4+ {[%clk 0:02:03]}  Kc7 {[%clk 0:01:04]} 33. Rc1+ {[%clk 0:02:03]}  Bc6 {[%clk 0:01:02]} 34. Rb7+ {[%clk 0:02:03]} 1-0


[Site "https://www.chess.com"]

[Event "Titled Tuesday Blitz April 19 Early 2022"]
[White "Sanal, Vahap"]
[Black "Khabinets, Ivan"]
[WhiteFideId "6300545"]
[BlackFideId "14115980"]
[WhiteElo "2802"]
[BlackElo "2563"]
[Result "1-0"]
[Round "08"]
[TimeControl "180+1"]
[Date "2022.04.19"]
[WhiteClock "0:01:12"]
[BlackClock "0:00:01"]

1. d4 {[%clk 0:03:00]}  d5 {[%clk 0:02:59]} 2. Nf3 {[%clk 0:03:01]}  e6 {[%clk 0:02:59]} 3. c4 {[%clk 0:03:01]}  a6 {[%clk 0:03:00]} 4. g3 {[%clk 0:03:02]}  dxc4 {[%clk 0:02:59]} 5. Bg2 {[%clk 0:03:02]}  b5 {[%clk 0:02:59]} 6. O-O {[%clk 0:03:03]}  Nf6 {[%clk 0:02:58]} 7. a4 {[%clk 0:03:03]}  c6 {[%clk 0:02:58]} 8. Ne5 {[%clk 0:03:03]}  Bb7 {[%clk 0:02:50]} 9. b3 {[%clk 0:03:02]}  cxb3 {[%clk 0:02:48]} 10. Qxb3 {[%clk 0:03:01]}  Bd6 {[%clk 0:02:49]} 11. Nc3 {[%clk 0:02:59]}  Nd5 {[%clk 0:02:44]} 12. Ne4 {[%clk 0:02:57]}  Be7 {[%clk 0:02:43]} 13. Nc5 {[%clk 0:02:54]}  Bxc5 {[%clk 0:02:39]} 14. dxc5 {[%clk 0:02:55]}  Nd7 {[%clk 0:02:39]} 15. Nxd7 {[%clk 0:02:52]}  Qxd7 {[%clk 0:02:39]} 16. Bb2 {[%clk 0:02:49]}  O-O {[%clk 0:02:39]} 17. e4 {[%clk 0:02:45]}  Nf6 {[%clk 0:02:39]} 18. Be5 {[%clk 0:02:41]}  Rfd8 {[%clk 0:02:35]} 19. Bd6 {[%clk 0:02:41]}  Qe8 {[%clk 0:02:15]} 20. e5 {[%clk 0:02:39]}  Nd5 {[%clk 0:02:14]} 21. f4 {[%clk 0:02:38]}  Bc8 {[%clk 0:02:11]} 22. axb5 {[%clk 0:02:32]}  cxb5 {[%clk 0:02:12]} 23. f5 {[%clk 0:02:33]}  Bd7 {[%clk 0:02:11]} 24. f6 {[%clk 0:02:33]}  g6 {[%clk 0:02:06]} 25. Qb2 {[%clk 0:02:23]}  Bc6 {[%clk 0:02:04]} 26. Qd2 {[%clk 0:02:23]}  Kh8 {[%clk 0:02:05]} 27. Qh6 {[%clk 0:02:22]}  Qg8 {[%clk 0:02:05]} 28. h4 {[%clk 0:02:18]}  a5 {[%clk 0:02:03]} 29. g4 {[%clk 0:02:08]}  b4 {[%clk 0:02:01]} 30. g5 {[%clk 0:02:08]}  a4 {[%clk 0:02:00]} 31. Be4 {[%clk 0:02:04]}  Ra7 {[%clk 0:01:25]} 32. h5 {[%clk 0:01:55]}  b3 {[%clk 0:01:23]} 33. Rf2 {[%clk 0:01:42]}  Nb4 {[%clk 0:01:02]} 34. hxg6 {[%clk 0:01:35]}  fxg6 {[%clk 0:00:58]} 35. Be7 {[%clk 0:01:25]}  b2 {[%clk 0:00:38]} 36. Rxb2 {[%clk 0:01:21]}  Bxe4 {[%clk 0:00:33]} 37. Rxb4 {[%clk 0:01:21]}  Bc6 {[%clk 0:00:04]} 38. f7 {[%clk 0:01:10]}  Qxf7 {[%clk 0:00:04]} 39. Bxd8 {[%clk 0:01:10]}  Qf3 {[%clk 0:00:03]} 40. Bf6+ {[%clk 0:01:11]}  Kg8 {[%clk 0:00:02]} 41. Rb8+ {[%clk 0:01:12]}  Kf7 {[%clk 0:00:01]} 42. Qf8# {[%clk 0:01:12]} 1-0


[Site "https://www.chess.com"]

[Event "Titled Tuesday Blitz April 19 Early 2022"]
[White "Sanchez Alvares, Kelvin Antonio"]
[Black "Dev, Shah"]
[WhiteFideId "3906680"]
[BlackFideId "35019058"]
[WhiteElo "2193"]
[BlackElo "2075"]
[Result "0-1"]
[Round "08"]
[TimeControl "180+1"]
[Date "2022.04.19"]
[WhiteClock "0:01:07"]
[BlackClock "0:02:27"]

1. e4 {[%clk 0:03:00]}  e5 {[%clk 0:02:59]} 2. Nf3 {[%clk 0:02:32]}  Nc6 {[%clk 0:02:59]} 3. Bb5 {[%clk 0:02:33]}  a6 {[%clk 0:02:59]} 4. Ba4 {[%clk 0:02:33]}  Nf6 {[%clk 0:02:59]} 5. O-O {[%clk 0:02:33]}  b5 {[%clk 0:03:00]} 6. Bb3 {[%clk 0:02:33]}  Bc5 {[%clk 0:03:01]} 7. a4 {[%clk 0:02:32]}  Rb8 {[%clk 0:03:00]} 8. axb5 {[%clk 0:02:32]}  axb5 {[%clk 0:03:01]} 9. d3 {[%clk 0:02:32]}  d6 {[%clk 0:03:01]} 10. h3 {[%clk 0:02:32]}  h6 {[%clk 0:03:01]} 11. Nc3 {[%clk 0:02:32]}  O-O {[%clk 0:03:02]} 12. Nd5 {[%clk 0:02:32]}  Be6 {[%clk 0:03:02]} 13. c3 {[%clk 0:02:26]}  Bxd5 {[%clk 0:03:02]} 14. exd5 {[%clk 0:02:26]}  Ne7 {[%clk 0:03:03]} 15. d4 {[%clk 0:02:25]}  exd4 {[%clk 0:03:04]} 16. Nxd4 {[%clk 0:02:24]}  Qd7 {[%clk 0:03:04]} 17. Ra6 {[%clk 0:02:15]}  Nexd5 {[%clk 0:02:54]} 18. Bxd5 {[%clk 0:02:14]}  Nxd5 {[%clk 0:02:54]} 19. Nc6 {[%clk 0:02:14]}  Rb6 {[%clk 0:02:54]} 20. Rxb6 {[%clk 0:02:14]}  Nxb6 {[%clk 0:02:55]} 21. Na5 {[%clk 0:02:07]}  Nc4 {[%clk 0:02:46]} 22. Nxc4 {[%clk 0:01:59]}  bxc4 {[%clk 0:02:47]} 23. Qd5 {[%clk 0:01:58]}  Qe6 {[%clk 0:02:46]} 24. Qc6 {[%clk 0:01:57]}  Bb6 {[%clk 0:02:41]} 25. Kh2 {[%clk 0:01:52]}  d5 {[%clk 0:02:37]} 26. Qb5 {[%clk 0:01:49]}  Ra8 {[%clk 0:02:29]} 27. Be3 {[%clk 0:01:22]}  Ra5 {[%clk 0:02:26]} 28. Qb4 {[%clk 0:01:18]}  c5 {[%clk 0:02:26]} 29. Bxc5 {[%clk 0:01:07]}  Rxc5 {[%clk 0:02:27]} 0-1


[Site "https://www.chess.com"]

[Event "Titled Tuesday Blitz April 19 Early 2022"]
[White "Sanchez, Robert"]
[Black "Zemerov, Vladimir"]
[WhiteFideId "2034360"]
[BlackFideId "4111583"]
[WhiteElo "2384"]
[BlackElo "2277"]
[Result "1-0"]
[Round "08"]
[TimeControl "180+1"]
[Date "2022.04.19"]
[WhiteClock "0:00:48"]
[BlackClock "0:01:43"]

1. e4 {[%clk 0:03:00]}  c6 {[%clk 0:02:58]} 2. d4 {[%clk 0:02:59]}  d5 {[%clk 0:02:59]} 3. e5 {[%clk 0:03:00]}  Bf5 {[%clk 0:02:58]} 4. Nf3 {[%clk 0:03:01]}  e6 {[%clk 0:02:59]} 5. Be2 {[%clk 0:03:01]}  h6 {[%clk 0:02:59]} 6. O-O {[%clk 0:03:01]}  Bb4 {[%clk 0:02:58]} 7. c3 {[%clk 0:03:00]}  Ba5 {[%clk 0:02:59]} 8. Nbd2 {[%clk 0:02:59]}  Bc7 {[%clk 0:02:58]} 9. Nb3 {[%clk 0:02:59]}  Ne7 {[%clk 0:02:58]} 10. h3 {[%clk 0:02:58]}  O-O {[%clk 0:02:56]} 11. Nh4 {[%clk 0:02:57]}  Bh7 {[%clk 0:02:55]} 12. f4 {[%clk 0:02:57]}  f6 {[%clk 0:02:48]} 13. exf6 {[%clk 0:02:48]}  Rxf6 {[%clk 0:02:46]} 14. Bd3 {[%clk 0:02:46]}  Bxd3 {[%clk 0:02:42]} 15. Qxd3 {[%clk 0:02:46]}  Nf5 {[%clk 0:02:43]} 16. Nxf5 {[%clk 0:02:46]}  exf5 {[%clk 0:02:43]} 17. Bd2 {[%clk 0:02:44]}  Nd7 {[%clk 0:02:42]} 18. Rae1 {[%clk 0:02:44]}  Rf7 {[%clk 0:02:41]} 19. Nc5 {[%clk 0:02:39]}  Nf6 {[%clk 0:02:40]} 20. Nxb7 {[%clk 0:02:31]}  Qc8 {[%clk 0:02:40]} 21. Nc5 {[%clk 0:02:30]}  Ne4 {[%clk 0:02:40]} 22. Rf3 {[%clk 0:02:16]}  Bd6 {[%clk 0:02:40]} 23. b4 {[%clk 0:02:15]}  Bxc5 {[%clk 0:02:40]} 24. dxc5 {[%clk 0:02:11]}  a5 {[%clk 0:02:40]} 25. b5 {[%clk 0:02:05]}  Nxc5 {[%clk 0:02:28]} 26. Qd4 {[%clk 0:02:00]}  Ne4 {[%clk 0:02:28]} 27. b6 {[%clk 0:01:58]}  Qb7 {[%clk 0:02:26]} 28. Rb1 {[%clk 0:01:57]}  c5 {[%clk 0:02:25]} 29. Qd3 {[%clk 0:01:55]}  Ra6 {[%clk 0:02:23]} 30. Be1 {[%clk 0:01:47]}  Rd7 {[%clk 0:02:22]} 31. Qb5 {[%clk 0:01:42]}  Kh7 {[%clk 0:02:14]} 32. Qxd7 {[%clk 0:01:34]}  Qxd7 {[%clk 0:02:01]} 33. b7 {[%clk 0:01:34]}  d4 {[%clk 0:01:57]} 34. b8=Q {[%clk 0:01:32]}  d3 {[%clk 0:01:57]} 35. Rb7 {[%clk 0:01:19]}  Qd5 {[%clk 0:01:45]} 36. Qe5 {[%clk 0:00:49]}  Rd6 {[%clk 0:01:43]} 37. Qxg7# {[%clk 0:00:48]} 1-0


[Site "https://www.chess.com"]

[Event "Titled Tuesday Blitz April 19 Early 2022"]
[White "Schekachikhin, Maksim"]
[Black "Baker, Chris W"]
[WhiteFideId "24177830"]
[BlackFideId "401676"]
[WhiteElo "2230"]
[BlackElo "2217"]
[Result "1-0"]
[Round "08"]
[TimeControl "180+1"]
[Date "2022.04.19"]
[WhiteClock "0:02:03"]
[BlackClock "0:01:51"]

1. d4 {[%clk 0:02:58]}  Nf6 {[%clk 0:02:59]} 2. c4 {[%clk 0:02:57]}  e6 {[%clk 0:02:59]} 3. Nc3 {[%clk 0:02:54]}  Bb4 {[%clk 0:02:58]} 4. e3 {[%clk 0:02:54]}  c5 {[%clk 0:02:56]} 5. Ne2 {[%clk 0:02:50]}  b6 {[%clk 0:02:54]} 6. a3 {[%clk 0:02:48]}  Bxc3+ {[%clk 0:02:51]} 7. Nxc3 {[%clk 0:02:48]}  cxd4 {[%clk 0:02:44]} 8. exd4 {[%clk 0:02:42]}  Bb7 {[%clk 0:02:44]} 9. Bg5 {[%clk 0:02:39]}  h6 {[%clk 0:02:43]} 10. Bh4 {[%clk 0:02:38]}  O-O {[%clk 0:02:34]} 11. f3 {[%clk 0:02:21]}  d5 {[%clk 0:02:31]} 12. cxd5 {[%clk 0:02:17]}  exd5 {[%clk 0:02:31]} 13. Be2 {[%clk 0:02:14]}  Nbd7 {[%clk 0:02:22]} 14. O-O {[%clk 0:02:11]}  Re8 {[%clk 0:02:19]} 15. Bd3 {[%clk 0:02:10]}  Qe7 {[%clk 0:02:03]} 16. Re1 {[%clk 0:02:05]}  Qf8 {[%clk 0:01:55]} 17. Qd2 {[%clk 0:02:04]}  Re2 {[%clk 0:01:51]} 18. Rxe2 {[%clk 0:02:03]} 1-0


[Site "https://www.chess.com"]

[Event "Titled Tuesday Blitz April 19 Early 2022"]
[White "Shandrygin, Nikita"]
[Black "Lagunov, Evgenij"]
[WhiteFideId "24198668"]
[BlackFideId "4125363"]
[WhiteElo "2323"]
[BlackElo "2200"]
[Result "1-0"]
[Round "08"]
[TimeControl "180+1"]
[Date "2022.04.19"]
[WhiteClock "0:00:08"]
[BlackClock "0:00:03"]

1. Nf3 {[%clk 0:03:00]}  d5 {[%clk 0:02:59]} 2. g3 {[%clk 0:03:01]}  e6 {[%clk 0:02:59]} 3. Bg2 {[%clk 0:03:00]}  Nf6 {[%clk 0:02:59]} 4. O-O {[%clk 0:03:01]}  Be7 {[%clk 0:02:59]} 5. c4 {[%clk 0:02:59]}  O-O {[%clk 0:02:58]} 6. d4 {[%clk 0:02:54]}  dxc4 {[%clk 0:02:50]} 7. Ne5 {[%clk 0:02:49]}  Nc6 {[%clk 0:02:50]} 8. Nxc6 {[%clk 0:02:48]}  bxc6 {[%clk 0:02:50]} 9. e3 {[%clk 0:02:36]}  Nd5 {[%clk 0:02:43]} 10. Qc2 {[%clk 0:02:26]}  Ba6 {[%clk 0:02:39]} 11. Rd1 {[%clk 0:02:17]}  Nb4 {[%clk 0:02:34]} 12. Qd2 {[%clk 0:02:10]}  Qd7 {[%clk 0:02:14]} 13. Nc3 {[%clk 0:02:07]}  Nd3 {[%clk 0:02:13]} 14. b3 {[%clk 0:02:05]}  Rab8 {[%clk 0:02:06]} 15. Ne4 {[%clk 0:01:51]}  Bb4 {[%clk 0:01:53]} 16. Qc2 {[%clk 0:01:47]}  Nxc1 {[%clk 0:01:31]} 17. Raxc1 {[%clk 0:01:25]}  cxb3 {[%clk 0:01:25]} 18. axb3 {[%clk 0:01:22]}  Bb5 {[%clk 0:01:23]} 19. Nc5 {[%clk 0:01:17]}  Qe7 {[%clk 0:01:21]} 20. h4 {[%clk 0:01:02]}  Rfd8 {[%clk 0:01:18]} 21. Nd3 {[%clk 0:00:50]}  Rb6 {[%clk 0:00:44]} 22. Ne5 {[%clk 0:00:45]}  h6 {[%clk 0:00:37]} 23. Bxc6 {[%clk 0:00:44]}  Bd6 {[%clk 0:00:29]} 24. Bxb5 {[%clk 0:00:32]}  Bxe5 {[%clk 0:00:29]} 25. Bc6 {[%clk 0:00:33]}  Bd6 {[%clk 0:00:28]} 26. Ba4 {[%clk 0:00:32]}  a5 {[%clk 0:00:26]} 27. Qe4 {[%clk 0:00:12]}  Rb4 {[%clk 0:00:19]} 28. Rc6 {[%clk 0:00:09]}  Rdb8 {[%clk 0:00:13]} 29. Ra6 {[%clk 0:00:09]}  Qf6 {[%clk 0:00:08]} 30. Rxa5 {[%clk 0:00:08]}  e5 {[%clk 0:00:05]} 31. Ra8 {[%clk 0:00:07]}  exd4 {[%clk 0:00:03]} 32. Rxd4 {[%clk 0:00:08]} 1-0


[Site "https://www.chess.com"]